Cogmind - Beta 14 @@@ ROGUE MODE // 2024.10.09 @ 08:51:38 Player: AkimboAoki Result: Self-destructed Performance ------------- Evolutions (1) 500 Regions Visited (5) 1000 Robots Destroyed (14) 70 Value Destroyed (321) 321 Prototype IDs (2) 40 Alien Tech Used (0) 0 Bonus (541) 541 TOTAL SCORE: 2472 Bonus ------- Follower Combat Kills 241 Met Imprinter 300 Cogmind --------- Core Integrity 357/400 Matter 300/300 Energy 250/250 System Corruption 0% Temperature Cool (0) Movement Walking (135) Location -6/Proximity Caves Parts ------- > --- POWER (1) -------- Ion Engine > --- PROPULSION (2) --- Improved Titanium Leg Makeshift Leg > --- UTILITY (4) ------ Large Storage Unit Sensor Array Signal Interpreter Hacking Drone Bay (1/1) > --- WEAPON (2) ------- Makeshift Axe CR-A16's Pointy Stick > --- INVENTORY (15) --- Improved Aluminum Leg Improved Aluminum Leg Improved Aluminum Leg Carbon-fiber Leg High-capacity Matter Pod (200) Makeshift ECM Suite Makeshift Light Armor Plating Improved Shield Generator Makeshift System Shield RU-N14's Throwing Claymores (4) RU-N14's Throwing Claymores (5) RU-N14's Throwing Claymores (2) RU-N14's Throwing Claymores (5) Peak State ------------ > --- POWER ------------ Light Nuclear Core > --- PROPULSION ------- Improved Titanium Leg Makeshift Leg > --- UTILITY ---------- Large Storage Unit Sensor Array Signal Interpreter Hacking Drone Bay > --- WEAPON ----------- RU-N14's Throwing Claymores CR-A16's Pointy Stick > --- INVENTORY -------- Ion Engine Ion Engine Improved Aluminum Leg Improved Aluminum Leg Improved Aluminum Leg Improved Aluminum Leg Improved Aluminum Leg Improved Aluminum Leg High-capacity Matter Pod Improved Shield Generator Grenade Launcher Mining Laser RU-N14's Throwing Claymores RU-N14's Throwing Claymores RU-N14's Throwing Claymores [Rating: 38] Favorites ----------- Power Light Nuclear Core Engine Ion Engine Power Core Light Nuclear Core Propulsion Improved Aluminum Leg Treads Light Treads Leg Improved Aluminum Leg Utility Large Storage Unit Device Sensor Array Storage Large Storage Unit Processor Signal Interpreter Weapon CR-A16's Pointy Stick Energy Gun Spread Laser Ballistic Gun Shotgun Special Weapon RU-N14's Throwing Claymores Slashing Weapon Makeshift Axe Piercing Weapon CR-A16's Pointy Stick Build | -11 -10 -9 -9 -7 -6 ------- Run | Yrd Mat Mat Min Zio Pro Slots Evolved 2 | . . 2 . . . Power . | . . . . . . Propulsion . | . . . . . . Utility 2 | . . 2 . . . Weapon . | . . . . . . Parts Attached 28 | 6 8 6 . 6 2 Power 4 | 1 1 . . . 2 Engine 3 | 1 . . . . 2 Core 1 | . 1 . . . . Reactor . | . . . . . . Propulsion 8 | 2 2 2 . 2 . Treads 2 | . 2 . . . . Leg 6 | 2 . 2 . 2 . Wheel . | . . . . . . Hover . | . . . . . . Flight . | . . . . . . Utility 6 | 1 3 1 . 1 . Device 3 | . 2 . . 1 . Storage 2 | 1 1 . . . . Processor 1 | . . 1 . . . Hackware . | . . . . . . Protection . | . . . . . . Artifact . | . . . . . . Weapon 10 | 2 2 3 . 3 . Energy Gun 4 | . 2 2 . . . Energy Cannon . | . . . . . . Ballistic Gun 3 | 2 . 1 . . . Ballistic Cannon . | . . . . . . Launcher . | . . . . . . Special Weapon 1 | . . . . 1 . Impact Weapon . | . . . . . . Slashing Weapon 1 | . . . . 1 . Piercing Weapon 1 | . . . . 1 . Special Melee Weapon . | . . . . . . Unidentified Prototypes 2 | . . . . 2 . Parts Lost 4 | . . 2 . . 2 Power 2 | . . . . . 2 Propulsion 1 | . . 1 . . . Utility . | . . . . . . Weapon 1 | . . 1 . . . Highest Loss Streak 2 | . . 1 . . 2 To Critical Strikes . | . . . . . . Average Slot Usage (%) 96 | . 96 84 88 99 100 Core 11 | . 12 11 11 11 6 Treads 5 | . 26 9 . . . Leg 16 | . 1 8 22 22 22 Device 17 | . 10 11 11 21 22 Storage 11 | . 14 11 11 11 11 Processor 8 | . . 11 11 11 11 Energy Gun 5 | . 6 16 11 3 . Ballistic Gun 7 | . 21 5 11 3 . Special Weapon 1 | . . . . 2 . Slashing Weapon 3 | . . . . 5 11 Piercing Weapon 4 | . . . . 7 11 Peak Build Rating 38 | 6 12 16 15 38 36 Average Rating 24 | 5 9 13 15 32 35 On Entrance 14 | . 6 12 15 15 36 Naked Turns . | . . . . . . Heaviest Build 38 | 12 32 32 32 38 33 Greatest Support 40 | 20 40 40 26 40 40 Greatest Overweight (x) 3 | 3 . 2 1 1 . Average Overweight (x) . | . . . 1 . . Largest Inventory Capacity 15 | 8 15 15 15 15 15 Average Capacity 14 | 7 13 15 15 15 15 Most Carried 15 | 6 15 15 11 15 15 Average Carried 12 | 3 10 11 11 13 14 Final Capacity 15 | 8 15 15 15 15 15 Final Carried 15 | 6 13 11 11 15 13 Class Distribution -------------------- 100% | Mutant Dominant Class ---------------- Mutant | -10/Materials Mutant | -9/Materials Mutant | -9/Mines Mutant | -7/Zion Mutant | -6/Proximity Caves Resources | -11 -10 -9 -9 -7 -6 ----------- Run | Yrd Mat Mat Min Zio Pro Matter Collected 737 | 167 205 152 . 154 59 Remotely . | . . . . . . Salvage Created 468 | . 277 191 . . . Parts 29 | . 20 9 . . . Haulers Intercepted 1 | . 1 . . . . Recyclers Shooed . | . . . . . . Parts Field Recycled . | . . . . . . Retrieved Matter . | . . . . . . Parts Self-Destructed 16 | . . . . . 16 Prevented . | . . . . . . Kills | -11 -10 -9 -9 -7 -6 ------- Run | Yrd Mat Mat Min Zio Pro Combat Hostiles Destroyed 11 | . 7 4 . . . Guns 7 | . 6 1 . . . AOE 4 | . 1 3 . . . Classes Destroyed 6 | . 4 2 . . . Hauler 1 | . 1 . . . . Recycler 1 | . . 1 . . . Watcher 1 | . 1 . . . . Swarmer 6 | . 3 3 . . . Grunt 4 | . 4 . . . . Sentry 1 | . . 1 . . . Best Kill Streak 3 | . 2 3 . . . Combat Bots Only 3 | . 2 3 . . . Max Kills in Single Turn 2 | . 1 2 . . . Gunslinging . | . . . . . . Exploded 2 | . 1 2 . . . Melee . | . . . . . . Uniques/NPCs Destroyed . | . . . . . . Combat | -11 -10 -9 -9 -7 -6 -------- Run | Yrd Mat Mat Min Zio Pro Hostile Shots Fired 61 | . 33 15 . . 13 Missed 13 | . 5 2 . . 6 Damage Taken 713 | . 366 181 . . 166 Core 144 | . 101 15 . . 28 Absorbed by Shields . | . . . . . . Core Remaining (%) 79 | 100 59 . . . . Volleys Fired 48 | . 39 9 . . . Largest 2 | . 2 2 . . . Hottest 90 | . 90 90 . . . Shots Fired 96 | . 78 18 . . . Gun 96 | . 78 18 . . . Cannon . | . . . . . . Launcher . | . . . . . . Special . | . . . . . . Kinetic 72 | . 72 . . . . Thermal . | . . . . . . Explosive . | . . . . . . Electromagnetic 24 | . 6 18 . . . Robot Hit Streak 8 | . 6 8 . . . Robot Miss Streak 4 | . 4 2 . . . Penetration Max . | . . . . . . Secondary Targets . | . . . . . . Shots Hit Robots 62 | . 47 14 . . 1 Core Hits 30 | . 24 6 . . . Critical Kills . | . . . . . . Critical Parts Destroyed 1 | . 1 . . . . Critical Strikes 1 | . 1 . . . . Destroy 1 | . 1 . . . . Melee Attacks 12 | . . . . 8 4 Impact . | . . . . . . Slashing 4 | . . . . 2 2 Piercing 8 | . . . . 6 2 Sneak Attacks . | . . . . . . Combat Hostiles . | . . . . . . Follow-up Attacks 2 | . . . . . 2 Damage Inflicted 790 | . 431 324 . . 35 Guns 532 | . 379 153 . . . Cannons . | . . . . . . Explosions 223 | . 52 171 . . . Melee 35 | . . . . . 35 Ramming . | . . . . . . Kinetic 337 | . 337 . . . . Thermal 223 | . 52 171 . . . Explosive . | . . . . . . Electromagnetic 195 | . 42 153 . . . Impact . | . . . . . . Slashing 35 | . . . . . 35 Piercing . | . . . . . . Highest Corruption . | . . . . . . Average Corruption . | . . . . . . Corruption Purged . | . . . . . . Corruption Blocked . | . . . . . . Overload Shots . | . . . . . . Overflow Damage 10 | . . 4 . . 6 Projectiles . | . . . . . . Explosions 4 | . . 4 . . . Melee 6 | . . . . . 6 Knockbacks . | . . . . . . Impact . | . . . . . . Kinetic . | . . . . . . Secondary . | . . . . . . Self-Inflicted Damage 79 | . 40 39 . . . Shots 3 | . 1 2 . . . Rammed . | . . . . . . Targets Rammed . | . . . . . . Kicked . | . . . . . . Crushed . | . . . . . . Highest Temperature 165 | . 84 165 . . . Average Temperature 33 | . 17 71 . . . Received Heat Transfer 216 | . 177 18 . . 21 Siege Activations . | . . . . . . Robots Corrupted . | . . . . . . Combat Hostiles . | . . . . . . Parts Fried 1 | . . 1 . . . Impact Corruptions . | . . . . . . Robots Melted . | . . . . . . Combat Hostiles . | . . . . . . Parts Melted . | . . . . . . Heat Transferred 250 | . 100 150 . . . Parts Sabotaged . | . . . . . . Parts Stolen . | . . . . . . Parts Stripped . | . . . . . . Power Chain Reactions 3 | . 1 2 . . . Alert | -11 -10 -9 -9 -7 -6 ------- Run | Yrd Mat Mat Min Zio Pro Peak Influence 237 | . 223 237 92 . . Initial 93 | . . 93 92 . . Average 106 | . 89 203 84 . . Maximum Alert Level 1 | . 1 1 . . . Low Security (%) 81 | 100 91 29 100 . . Level 1 18 | . 8 70 . . . Level 2 . | . . . . . . Level 3 . | . . . . . . Level 4 . | . . . . . . Level 5 . | . . . . . . High Security . | . . . . . . Max Security . | . . . . . . Squads Dispatched 2 | . 1 1 . . . Investigation 1 | . . 1 . . . Extermination . | . . . . . . Reinforcement 1 | . 1 . . . . Assault . | . . . . . . Garrison . | . . . . . . Intercept . | . . . . . . Searches Triggered . | . . . . . . Construction Impeded . | . . . . . . Haulers Reinforced . | . . . . . . Active Scanning Responses . | . . . . . . Cargo Convoy Interrupts . | . . . . . . Stealth | -11 -10 -9 -9 -7 -6 --------- Run | Yrd Mat Mat Min Zio Pro Distress Signals 3 | . . 3 . . . Communications Jammed . | . . . . . . Distress Signals . | . . . . . . Times Spotted 29 | . 17 4 . . 8 Peak Tracking Total 4 | . 4 3 . . 4 Tactical Retreats 3 | . 3 . . . . Traps | -11 -10 -9 -9 -7 -6 ------- Run | Yrd Mat Mat Min Zio Pro Traps Triggered . | . . . . . . Indirectly . | . . . . . . Trap Hack Attempts . | . . . . . . Triggered . | . . . . . . Disarmed . | . . . . . . Reprogrammed . | . . . . . . Reused . | . . . . . . Traps Extracted . | . . . . . . Installed . | . . . . . . Triggered . | . . . . . . Machines | -11 -10 -9 -9 -7 -6 ---------- Run | Yrd Mat Mat Min Zio Pro Machines Disabled 3 | . 1 2 . . . Max in Single Turn 2 | . 1 2 . . . Machines Repaired . | . . . . . . Machines Dismantled . | . . . . . . Machines Sabotaged . | . . . . . . Overloaded Fab Kills . | . . . . . . Hacking | -11 -10 -9 -9 -7 -6 --------- Run | Yrd Mat Mat Min Zio Pro Machines Accessed 7 | . 5 2 . . . Terminals 5 | . 4 1 . . . Fabricators . | . . . . . . Repair Stations . | . . . . . . Recycling Units 2 | . 1 1 . . . Scanalyzers . | . . . . . . Garrison Access . | . . . . . . Total Hacks 12 | . 9 3 . . . Successful 4 | . 3 1 . . . Failed 8 | . 6 2 . . . Catastrophic . | . . . . . . Database Lockouts . | . . . . . . Manual 14 | . 9 3 . 2 . Terminals 10 | . 8 2 . . . Fabricators . | . . . . . . Repair Stations . | . . . . . . Recycling Units 2 | . 1 1 . . . Scanalyzers . | . . . . . . Garrison Access . | . . . . . . Terminal Hacks . | . . . . . . Fabricator Hacks . | . . . . . . Repair Station Hacks . | . . . . . . Recycling Unit Hacks . | . . . . . . Scanalyzer . | . . . . . . Garrison Access Hacks . | . . . . . . Unauthorized Hacks 4 | . 3 1 . . . Terminals 3 | . 2 1 . . . Botnet 3 | . 2 1 . . . Fabricators . | . . . . . . Repair Stations . | . . . . . . Recycling Units 1 | . 1 . . . . Mask 1 | . 1 . . . . Scanalyzers . | . . . . . . Garrison Access . | . . . . . . Data Cores Recovered . | . . . . . . Used . | . . . . . . Hacking Detections 7 | . 5 2 . . . Full Trace Events . | . . . . . . Feedback Events . | . . . . . . Feedback Blocked . | . . . . . . Robot Schematics Acquired 3 | . . . . 3 . Robots Built . | . . . . . . Authchips . | . . . . . . Time . | . . . . . . Total Robot Build Rating . | . . . . . . Part Schematics Acquired 13 | . . . . 13 . Parts Built . | . . . . . . Authchips . | . . . . . . Time . | . . . . . . Total Part Build Rating . | . . . . . . Parts Repaired . | . . . . . . Time . | . . . . . . Parts Recycled . | . . . . . . Recycled Matter . | . . . . . . Retrieved Matter . | . . . . . . Retrieved Components . | . . . . . . Parts Scanalyzed . | . . . . . . Part Schematics Acquired . | . . . . . . Parts Damaged . | . . . . . . Bothacking | -11 -10 -9 -9 -7 -6 ------------ Run | Yrd Mat Mat Min Zio Pro Used RIF Installer . | . . . . . . Robots Hacked . | . . . . . . Non-combat . | . . . . . . Combat . | . . . . . . Robot Hacks Applied . | . . . . . . Relay Couplers Released . | . . . . . . Fabnet Peak Effective % . | . . . . . . Robots Rewired . | . . . . . . Allies Hacked . | . . . . . . Hacks Repelled . | . . . . . . Allies | -11 -10 -9 -9 -7 -6 -------- Run | Yrd Mat Mat Min Zio Pro Total Allies 5 | . . . . 5 . Largest Group 5 | . . . . 5 5 Highest-Rated Group 266 | . . . . 266 266 Highest-Rated Ally 96 | . . . . 96 96 Total Orders . | . . . . . . Ally Attacks 50 | . . . . . 50 Total Damage 1088 | . . . . . 1088 Kills 9 | . . . . . 9 Allies Corrupted . | . . . . . . Allies Melted . | . . . . . . Intel | -11 -10 -9 -9 -7 -6 ------- Run | Yrd Mat Mat Min Zio Pro Robot Analysis Total . | . . . . . . Derelict Logs Recovered 4 | . . . 1 1 2 Drone Launches . | . . . . . . Drone Recoveries . | . . . . . . Exploration | -11 -10 -9 -9 -7 -6 ------------- Run | Yrd Mat Mat Min Zio Pro Turns Passed 3724 | 94 682 317 432 2024 175 Spaces Moved 2155 | 60 328 132 224 1288 123 Core 8 | 8 . . . . . Treads 375 | . 303 72 . . . Legs 1772 | 52 25 60 224 1288 123 Wheels . | . . . . . . Hover . | . . . . . . Flight . | . . . . . . Fastest Speed 50 | 50 120 160 190 125 135 Average Speed 155 | 132 156 194 190 147 135 Slowest Speed 260 | 200 160 260 190 195 135 Overloaded Moves . | . . . . . . Propulsion Burnouts . | . . . . . . Robots Hopped . | . . . . . . Cave-ins Triggered . | . . . . . . Exploration Rate (%) 41 | 4 57 14 56 90 28 Regions Visited 5 Branch Regions 3 Pre-discovered Areas 1 | . . . . . 1 Known Exits Taken 3 | . . 1 1 1 . Unknown Exits Taken 2 | 1 1 . . . . Scrap Searched 4 | . . . . 3 1 Spaces Dug . | . . . . . . Terrain Destroyed 9 | . . 9 . . . Melee . | . . . . . . Projectile . | . . . . . . AOE 9 | . . 9 . . . Terrain Rammed . | . . . . . . Walls Destroyed . | . . . . . . Machines Disabled . | . . . . . . Actions | -11 -10 -9 -9 -7 -6 --------- Run | Yrd Mat Mat Min Zio Pro Total 2448 | 71 436 179 231 1402 129 Wait 141 | . 38 19 8 76 . Move 2150 | 59 327 131 223 1287 123 Hop . | . . . . . . Pick Up 43 | 6 14 6 . 16 1 Fast Attach 10 | 6 2 2 . . . Attach 8 | . . 2 . 4 2 Detach 2 | . 1 1 . . . Swap 10 | . 6 2 . 2 . Drop 28 | . 9 7 . 11 1 Fire 48 | . 39 9 . . . Melee 8 | . . . . 6 2 Ram . | . . . . . . Kick . | . . . . . . Crush . | . . . . . . Escape Stasis . | . . . . . . Rewire . | . . . . . . Trap . | . . . . . . Miscellaneous . | . . . . . . Route ------- -11/Scrapyard -10/Materials (discovered 2 exits: *Mat x2) -9/Materials (discovered 2 exits: *Min / [*Sto]) -9/Mines -7/Zion -6/Proximity Caves History --------- Turn | Location | Event 16 | -11/Scrapyard | Discovered new exit (range 16) 95 | -11/Scrapyard | Entered Materials 308 | -10/Materials | Build established: Mutant 465 | -10/Materials | Discovered new exit (range 13) 774 | -10/Materials | Discovered new exit (range 3) 777 | -10/Materials | Entered another Materials area 777 | -9/Materials | Evolved 2 slots: Utility x2 907 | -9/Materials | Discovered new exit (range 16) 915 | -9/Materials | Discovered new exit (range 11) 1052 | -9/Materials | Met 8R-AWN 1092 | -9/Materials | Identified exit to Mines 1094 | -9/Materials | Entered Mines 1096 | -9/Mines | Followed 8R-AWN into the Mines 1139 | -9/Mines | A Derelict revealed a hidden shortcut to a safe place 1155 | -9/Mines | Identified exit to Zion 1406 | -9/Mines | Learned Materials emergency access door positions 1526 | -9/Mines | Entered Zion 1604 | -7/Zion | Received a hallucinogenic algorithm 1606 | -7/Zion | Learned location of 1 exit from Lower Caves 1639 | -7/Zion | Discovered new exit (range 16) 1648 | -7/Zion | Given the Hacking Drone Bay 1648 | -7/Zion | Found Prototype Device 1649 | -7/Zion | Identified Hacking Drone Bay 1669 | -7/Zion | Identified exit to Proximity Caves 1743 | -7/Zion | Found CR-A16's Pointy Stick 1777 | -7/Zion | Given A8's code to call for help 2164 | -7/Zion | Found Prototype Special Weapon 2171 | -7/Zion | Identified RU-N14's Throwing Claymores 2187 | -7/Zion | Found RU-N14's Throwing Claymores 2190 | -7/Zion | Found RU-N14's Throwing Claymores 2193 | -7/Zion | Found RU-N14's Throwing Claymores 2407 | -7/Zion | Gained Derelict followers 3231 | -7/Zion | Met Imprinter 3482 | -7/Zion | Enhanced Grunt warped into view, answering call for help 3484 | -7/Zion | Enhanced Grunt warped into view, answering call for help 3550 | -7/Zion | Entered Proximity Caves 3550 | -6/Proximity Caves | Accompanied by 5 allies 3630 | -6/Proximity Caves | Learned 8 Factory zone layouts 3634 | -6/Proximity Caves | Learned location of Extension (-6) 3725 | -6/Proximity Caves | Self-destructed Last Messages --------------- Data stored: Factory zone layouts (x8). 03634_ Acquired derelict log, extracted data. World map updated: -6/Extension. 03652_ Lgt. Nuclear Core destroyed. 03652_ S-27 Virus destroyed. 03654_ Chain reaction triggered in Lgt. Nuclear Core. 03654_ S-27 Virus destroyed. 03659_ Autogun fries itself beyond repair. 03659_ Mak. Axe follow-up attack on S-27 Virus. 03659_ Destroyed Lgt. Nuclear Core. 03660_ S-27 Virus destroyed. 03663_ Ion Engine destroyed. 03664_ S-27 Virus destroyed. 03666_ Lgt. Nuclear Core fries itself beyond repair. 03678_ Searching scrap... 03678_ Found Imp. Medium Treads. 03678_ Found Battle Cannon. 03678_ Found 64 Matter. 03679_ Acquired 15 matter. 03680_ VTOL Module fries itself beyond repair. Map ----- +----------------------------------------------------+ | ?????????????????????????????????????????????????? | | ?????????????????????????????????????????????????? | | ?????????????????????????????????????????????????? | | ?????????????????????????????????????????????????? | | ?????????????????????????????????????????????????? | | ?????????????????????????????????????????????????? | | ?????????????????????????????????????????????????? | | ?????????????????????????????????????????????????? | | ?????????????????????????????????????????????????? | | ?????????????????????????????????????????????????? | | ?????????????????????????????????????????????????? | | ?????????????????????????????????????????????????? | | ?????????????????????????????????????????????????? | | ?????????????????????????????????????????????????? | | ?????????????????????????????????????????????????? | | ?????????????????????????????????????????????????? | | ?????????????????????????????????????????????????? | | ?????????????????????????????????????????????????? | | ?????????????????????????????????????????????????? | | ?????????????????????????????????????????????????? | | ?????????????????????????????????????????????????? | | ?????????????????????????????????????????????????? | | ?????????????????????????????????????????????????? | | ????????????????????????####?###?????????????????? | | ????????????????????????# ### #?????????????????? | | ????????????????????????#@ ##????????????????? | | ????????????????????????# ##???????????????? | | ????????????????????????## ##??????????????? | | ?????????????????????????# gg ##?????????????? | | ????????????????????????## g #?????????????? | | ????????????????????????# M ##????????????? | | ???????????????######???# ##???????????? | | ?##???????????## ##??# ## ##??????????? | | ?? ###????????# ##### ### ##?????????? | | ?? ##???##??# #### ##?# #?????????? | | ??# ##?# #?## #?###?## #?????????? | | ??# ## #?# #####????## ##?????????? | | ?## ### ##?####### ##??????????? | | ## [%% #?# #???????????? | | = %=### ##??????????? | | ### # ]## #??????????? | | #?### # #??????????? | | #???# #### ##??????????? | | #??## ####???##???????????? | | #??# ### ##???????????????????? | | ## #??# ### ##????????????????????? | | ### ##?## ## ##????????????????????? | | ##?# ##?## ##???????????????????? | | ##??# #??# ##??????????????????? | | ##???# ##??## %# % #??????????????????? | +----------------------------------------------------+ Best States ------------- Heat Dissipation 28 Energy Generation 14 Energy Capacity 250 Matter Stores 300 Matter Capacity 300 Sight Range 16 Robot Scan Range 14 Terrain Scan Range 14 Terrain Scan Density 10 Evasion (%) 55 Recoil Reduction 2 Item Schematics ----------------- Arm. Huge Wheel | -7/Zion | Archive Thermal Shield | -7/Zion | Archive Force Booster | -7/Zion | Archive Matter Compressor | -7/Zion | Archive Gauss Rifle | -7/Zion | Archive Adv. Cooling System | -7/Zion | Archive Enh. Optical Array | -7/Zion | Archive Med. Treads | -7/Zion | Archive Arc Projector | -7/Zion | Archive Imp. Recalibrator | -7/Zion | Archive Adv. Melee Analysis Suite | -7/Zion | Archive Hrd. Heavy Armor Plating | -7/Zion | Archive Adv. Signal Interpreter | -7/Zion | Archive Robot Schematics ------------------ A-02 Transporter | -7/Zion | Archive G-47 Trooper | -7/Zion | Archive C-57 Dissector | -7/Zion | Archive Fabricated ------------ Nothing Alien Tech Used ----------------- None Achievements -------------- Help From High Places Challenges ------------ None Game ------ Seed AbsorptionCoolingSink Manual? 0 Play Time 00:41:11 Cumulative 24.9 hours Start 2024.10.08 @ 11:54:05 End 2024.10.09 @ 08:51:38 Sessions 3 Manual Loads 0 Difficulty Rogue Special Mode None Game No. 12 Rogue 12 Adventurer 0 Explorer 0 Win Type - Total 0 Types 0/0/0/0/0/0/0/0/0 Lore% 19 Gallery% 28 Achievement% 37 Wizard Run 0 Options --------- Layout 0 ASCII 1 Keyboard 1 Movement Numpad Keybinds 0 Fullscreen 1 Font 18/SmallcapsGlow Map View 76x50 Zoom Use 0% Tactical HUD 1 Map Filters NONE Filters NONE Steam 1 RUN: 2b370b1c-33eb-475f-9899-9a7413f53dc1